{"text_format":"1","workbook":"xlsx","n_sheets":5,"sheets":["Instruções","Lançamento","Gerar PDF - Consolidada","Gerar PDF - Detalhamento","Fonte DropDown"],"not_rendered":{"charts":0,"images":4,"macros":1,"external_links":0,"defined_names":7,"comments":0,"pivot_tables":1},"unopened":[],"bounds":{"document_bytes":16777216,"sheet_cells":100000,"rows_first":2000,"rows_last":500,"rows_between":2000,"halvings":0,"cell_chars":16384,"cell_head_chars":4096},"cells_cut":0,"cells_raw":0,"read":"whole","date_system":"1900"}

{"sheet":"Instruções","index":0,"n_rows":43,"n_cols":3,"rows_kept":43,"cut":false,"hidden":false,"merged":[[42,0,42,8],[39,0,39,1],[40,0,40,1],[34,0,34,1],[35,0,35,1],[36,0,36,1],[37,0,37,1],[39,2,39,8],[40,2,40,8],[8,0,8,8],[5,0,5,8],[6,0,6,8],[10,0,10,8],[11,0,11,8],[12,0,12,8],[13,0,13,8],[17,0,17,8],[22,0,22,8],[18,0,18,8],[16,0,16,8],[20,0,20,8],[19,0,19,8],[21,0,21,8],[27,0,27,8],[29,0,29,1],[30,0,30,1],[31,0,31,1],[32,0,32,1],[29,2,29,8],[30,2,30,8],[31,2,31,8],[32,2,32,8],[33,0,33,1],[38,0,38,1],[34,2,34,8],[35,2,35,8],[36,2,36,8],[37,2,37,8],[38,2,38,8],[33,2,33,8]]}
[]
[]
[]
[]
[]
["AGÊNCIA DE INOVAÇÃO E TRANSFERÊNCIA DE TECNOLOGIA - INOVA"]
["DISCRIMINAÇÃO DE CUSTOS COM REPASSE PREVISTO POR MEIO DE FUNDAÇÃO DE APOIO"]
[]
["INSTRUÇÕES PARA O PREENCHIMENTO"]
[]
["Caro(a) servidor(a), siga as seguintes etapas:"]
["I- Preencha a planilha \"LANÇAMENTO\". É a única planilha que deve ser preenchida"]
["II- Consulte os dados gerados automaticamente na planilha \"Gerar PDF - Detalhamento\""]
["III- Gere um arquivo PDF a partir da planilha \"Gerar PDF - Detalhamento\""]
[]
["IMPORTANTE:"]
["- todos os valores devem ser informados em Reais. Converta os valores de dólar para Real, caso necessário"]
["- se houver itens importados ou serviços do exterior, o campo \"TAXA DE CÂMBIO (US$ --> R$)\" é obrigatório"]
["- para lançamento de bolsas ou salários, incluir uma pessoa/vaga por linha e selecionar a unidade \"Mês\""]
["- Não digitar a mesma descrição (texto exato) em linhas diferentes: ex: \"Bolsista\" e \"Bolsista\". Digite: \"Bolsista 1\" em uma linha e \"Bolsista 2\" na outra, caso o projeto tenha previsão de dois bolsistas, por exemplo."]
["- o campo \"Valor cobrado pela Fundação de Apoio\" está provisoriamente preenchido com 15% do valor parcial do projeto"]
["- envie o Projeto de Pesquisa e a Planilha de Custos para as Fundações de Apoio para identificar a melhor proposta"]
["- após receber os orçamentos das fundações, escolha uma e atualize o campo \"Valor cobrado pela Fundação de Apoio\""]
[]
["A coluna \"Quant.\" deve ser preenchida conforme orientações abaixo:"]
["- item quantificável (ex: computador): incluir a quantidade de itens / produtos / peças"]
["- pagamento mensal (ex: bolsas, salários ou despesas mensais): incluir o número de meses (utilize a unidade: Mês)"]
["- item não quantificáveis (ex: serviços): deixar em branco"]
[]
["GRUPOS DE CUSTOS",null,"DESCRIÇÃO"]
["Contratação CLT",null,"Contratação de pessoal de apoio ao projeto por meio da CLT. Discriminar o tipo de profissional, o valor mensal líquido, o número de meses. Incluir as taxas trabalhistas"]
["Despesa",null,"Despesas mensais / anuais do projeto (ex: tarifa de manutenção de conta corrente)"]
["Diárias e passagens",null,"Descrever o montante, o tipo (passagens ou diárias) e o número de pessoas a serem atendidas"]
["Material de consumo importado",null,"Consumíveis importados como vidraria, reagentes, componentes elétrônicos, cabos, conectores e acessórios não-patrinoníáveis. Considerar eventuais taxas de importação"]
["Material de consumo nacional",null,"Consumíveis nacionais como vidraria, reagentes, componentes elétrônicos, cabos, conectores e acessórios não-patrinoníáveis"]
["Material permanente importado",null,"Considerar cada conjunto patrimoniável de equipamentos e acessórios, softwares e livros patrimoniáveis. Considerar eventuais taxas de importação"]
["Material permanente nacional",null,"Considerar cada conjunto patrimoniável de equipamentos e acessórios, softwares e livros patrimoniáveis"]
["Pagamento a discente",null,"Bolsa de iniciação científica ou Estágio pago pela Fundação, discriminando o nível do discente (não há encargos trabalhistas)"]
["Pagamento a servidor",null,"Bolsa bolsa paga pela Fundação, discriminando a função do servidor no projeto"]
["Serviços de terceiros nacional",null,"Serviços prestados por pessoas jurídicas com nota fiscal fornecida no Brasil"]
["Serviços de terceiros no exterior",null,"Serviços prestados por pessoas jurídicas com nota fiscal fornecida no exterior"]
[]
["Outras dúvidas, entrar em contato com o Agente de Prospecção de seu câmpus ou com a INOVA (inova@ifsp.edu.br)"]

{"sheet":"Lançamento","index":1,"n_rows":78,"n_cols":9,"rows_kept":78,"cut":false,"hidden":false,"merged":[[18,8,18,12],[7,8,14,12],[77,2,77,5],[0,0,0,5],[1,0,1,5],[2,0,2,5],[3,0,3,5],[76,2,76,4],[75,2,75,4]]}
["AGÊNCIA DE INOVAÇÃO E TRANSFERÊNCIA DE TECNOLOGIA - INOVA"]
["DISCRIMINAÇÃO DE CUSTOS COM REPASSE PREVISTO POR MEIO DE FUNDAÇÃO DE APOIO"]
["TÍTULO DO PROJETO:"]
["digite o título do projeto aqui (planilha LANÇAMENTO)"]
["Descrição (somente 1 linha para cada item) - max 100 caracteres\nobs: lançamento de bolsas ou salários, incluir uma pessoa/vaga por linha - utilize a unidade: Mês","Grupo\n(campo obrigatório!)","Quant.","Unidade","Valor Unitário\nem Reais (R$)","Valor Total\nem Reais (R$)","Lançamento"]
["Despesas Bancárias e de Correio - Item obrigatório exigido pelas Fundações de Apoio","Despesa",null,"Mês",{"$f":"IF(C6=\"\",\"<- digitar quant. meses\",50)","v":"<- digitar quant. meses"},{"$f":"IF(C6=\"\",\"digitar quant. meses\",C6*E6)","v":"digitar quant. meses"},{"$f":"IF(D6=\"\",A6,_xlfn.CONCAT(A6,\" \",\" [Unidade: \",D6,\"]\"))","v":"Despesas Bancárias e de Correio - Item obrigatório exigido pelas Fundações de Apoio  [Unidade: Mês]"},null,"<-- proibida a exclusão desta despesa"]
["Bolsa Servidor 1 (Coordenador do Projeto) - José Saramago, 10 horas semanais","Pagamento a servidor",12,"Mês",1500,{"$f":"IF(C7=\"\",E7,C7*E7)","v":18000},"Bolsa Servidor 1 (Coordenador do Projeto) - José Saramago, 10 horas semanais  [Unidade: Mês]"]
["Bolsa Servidor 2 (Pesquisador) - Ana Ribeiro, 6 horas semanais","Pagamento a servidor",12,"Mês",1500,{"$f":"IF(C8=\"\",E8,C8*E8)","v":18000},"Bolsa Servidor 2 (Pesquisador) - Ana Ribeiro, 6 horas semanais  [Unidade: Mês]",null,"IMPORTANTE: Na coluna Descrição, não digite o mesmo texto em linha diferentes: ex: \"Bolsa discente - a definir\" e \"Bolsa discente - a definir\".\nDigite assim: \"Bolsa discente 1 - a definir\" em uma linha, e, \"Bolsa discente 2 - a definir\" em outra linha. Assim a tabela consolidada entenderá que são duas pessoas"]
["Bolsa Discente 1 - a definir","Pagamento a discente",12,"Mês",900,10800,"Bolsa Discente 1 - a definir  [Unidade: Mês]"]
["Bolsa Discente 2 - a definir","Pagamento a discente",12,"Mês",900,10800,"Bolsa Discente 2 - a definir  [Unidade: Mês]"]
["Bolsa Discente 3 - a definir","Pagamento a discente",12,"Mês",900,10800,"Bolsa Discente 3 - a definir  [Unidade: Mês]"]
["Bolsa Discente 4 - a definir","Pagamento a discente",12,"Mês",900,10800,"Bolsa Discente 4 - a definir  [Unidade: Mês]"]
["Osciloscópio Tektronics mod. DSO-4548","Material permanente nacional",2,"Peça (pç)",4000,8000,"Osciloscópio Tektronics mod. DSO-4548  [Unidade: Peça (pç)]"]
["Medidor de LCR de precisão Keysight mod. E4980A , 20 Hz a 2 MHz","Material permanente importado",1,"Peça (pç)",102000,102000,"Medidor de LCR de precisão Keysight mod. E4980A , 20 Hz a 2 MHz  [Unidade: Peça (pç)]"]
["Papel Sulfite A4 Branco","Material de consumo nacional",70,"Resma (RM)",19.899999999999999,1393,"Papel Sulfite A4 Branco  [Unidade: Resma (RM)]"]
["Material (fibra de carbono) para corpos de prova","Material de consumo importado",10,"Metro (m)",690,6900,"Material (fibra de carbono) para corpos de prova  [Unidade: Metro (m)]"]
["Manutenção de componentes eletrônicos","Serviços de terceiros nacional",null,null,5000,5000,"Manutenção de componentes eletrônicos"]
["Calibração de equipamento X","Serviços de terceiros no exterior",null,null,7000,7000,"Calibração de equipamento X"]
["Contratação de um Engenheiro - CLT","Contratação CLT",12,"Mês",9000,108000,"Contratação de um Engenheiro - CLT  [Unidade: Mês]",null,"Há campos para preencher ao final da planilha!"]
["Encargos de folha de pagamento - Engenheiro CLT (100% do salário bruto)","Contratação CLT",12,"Mês",9000,108000,"Encargos de folha de pagamento - Engenheiro CLT (100% do salário bruto)  [Unidade: Mês]"]
["Dárias para participação em reunão científica (3 pessoas)","Diárias e passagens",3,"Und.",3300,9900,"Dárias para participação em reunão científica (3 pessoas)  [Unidade: Und.]"]
["Passagens para participação em reunião científica (3 pessoas)","Diárias e passagens",3,"Und.",4000,12000,"Passagens para participação em reunião científica (3 pessoas)  [Unidade: Und.]"]
[null,null,null,null,null,0,0]
[null,null,null,null,null,0,0]
[null,null,null,null,null,0,0]
[null,null,null,null,null,0,0]
[null,null,null,null,null,0,0]
[null,null,null,null,null,0,0]
[null,null,null,null,null,0,0]
[null,null,null,null,null,0,0]
[null,null,null,null,null,0,0]
[null,null,null,null,null,0,0]
[null,null,null,null,null,0,0]
[null,null,null,null,null,0,0]
[null,null,null,null,null,0,0]
[null,null,null,null,null,0,0]
[null,null,null,null,null,0,0]
[null,null,null,null,null,0,{"$f":"IF(D38=\"\",A38,_xlfn.CONCAT(A38,\" \",\" [Unidade: \",D38,\"]\"))","v":0}]
[null,null,null,null,null,0,0]
[null,null,null,null,null,0,0]
[null,null,null,null,null,0,0]
[null,null,null,null,null,0,0]
[null,null,null,null,null,0,0]
[null,null,null,null,null,0,0]
[null,null,null,null,null,0,0]
[null,null,null,null,null,0,0]
[null,null,null,null,null,0,0]
[null,null,null,null,null,0,0]
[null,null,null,null,null,0,0]
[null,null,null,null,null,0,0]
[null,null,null,null,null,0,0]
[null,null,null,null,null,0,0]
[null,null,null,null,null,0,0]
[null,null,null,null,null,0,0]
[null,null,null,null,null,0,0]
[null,null,null,null,null,0,0]
[null,null,null,null,null,0,0]
[null,null,null,null,null,0,0]
[null,null,null,null,null,0,0]
[null,null,null,null,null,0,0]
[null,null,null,null,null,0,0]
[null,null,null,null,null,0,0]
[null,null,null,null,null,0,0]
[null,null,null,null,null,0,0]
[null,null,null,null,null,0,0]
[null,null,null,null,null,0,0]
[null,null,null,null,null,0,0]
[null,null,null,null,null,0,0]
[null,null,null,null,null,0,0]
[null,null,null,null,null,0,{"$f":"IF(D70=\"\",A70,_xlfn.CONCAT(A70,\" \",\" [Unidade: \",D70,\"]\"))","v":0}]
[null,null,null,null,null,0,0]
[null,null,null,null,null,{"$f":"IF(C72=\"\",E72,C72*E72)","v":0},0]
[null,null,null,null,null,{"$f":"IF(C73=\"\",E73,C73*E73)","v":0},0]
[null,null,null,null,null,{"$f":"IF(C74=\"\",E74,C74*E74)","v":0},0]
[null,null,null,null,null,{"$f":"IF(C75=\"\",E75,C75*E75)","v":0},0]
["TAXA DE CÂMBIO (US$ --> R$) CONSIDERADA :",0,"VALOR PARCIAL:",null,null,{"$f":"SUM(F6:F75)","v":447393}]
["VALOR COBRADO PELA FUNDAÇÃO DE APOIO:",0,"VALOR TOTAL:",null,null,{"$f":"F76+B77+B78","v":478184.44}]
["TAXA DE RESSARCIMENTO INSTITUCIONAL (TRI):",{"$f":"IF(F76<=50000,4%*F76,IF(F76<=200000,6%*F76-1000,IF(F76<=1000000,8%*F76-5000,IF(F76>1000000,10%*F76-25000,0))))","v":30791.440000000002},"obs: atualize somente se houve lançamento de itens importados ou serviços do exterior"]

{"sheet":"Gerar PDF - Consolidada","index":2,"n_rows":40,"n_cols":7,"rows_kept":40,"cut":false,"hidden":true,"merged":[[39,0,39,5],[33,1,33,5],[26,0,26,2],[26,3,26,4],[28,0,28,5],[29,0,29,5],[34,1,34,5],[37,0,37,6],[0,3,0,6],[1,3,1,6],[2,3,2,6],[24,1,24,5],[7,0,7,6],[4,0,4,6],[6,0,6,6],[25,3,25,5],[27,3,27,5],[31,1,31,5],[36,1,36,5],[9,0,9,5]]}
[null,null,null,"INSTITUTO FEDERAL DE EDUCAÇÃO, CIÊNCIA E TECNOLOGIA DE SÃO PAULO"]
[null,null,null,"AGÊNCIA DE INOVAÇÃO E TRANSFERÊNCIA DE TECNOLOGIA - INOVA / IFSP"]
[null,null,null,"PROJETO DE PESQUISA COM CONTRAPARTIDA FINANCEIRA"]
[]
["PLANILHA DE CUSTOS CONSOLIDADA"]
[]
["TÍTULO DO PROJETO"]
[{"$f":"Lançamento!A4","v":"digite o título do projeto aqui (planilha LANÇAMENTO)"}]
[]
["ITEM DE CUSTO",null,null,null,null,null,"VALOR"]
[]
["CONTRATAÇÃO CLT",null,null,null,null,null,{"$f":"SUMIF(Lançamento!B6:B75,\"Contratação CLT\",Lançamento!F6:F75)","v":216000}]
["DESPESAS",null,null,null,null,null,{"$f":"SUMIF(Lançamento!B6:B75,\"Despesa\",Lançamento!F6:F75)","v":0}]
["DIÁRIAS E PASSAGENS",null,null,null,null,null,{"$f":"SUMIF(Lançamento!B6:B75,\"Diárias e passagens\",Lançamento!F6:F75)","v":21900}]
["MATERIAL DE CONSUMO IMPORTADO",null,null,null,null,null,{"$f":"SUMIF(Lançamento!B6:B75,\"Material de consumo importado\",Lançamento!F6:F75)","v":6900}]
["MATERIAL DE CONSUMO NACIONAL",null,null,null,null,null,{"$f":"SUMIF(Lançamento!B6:B75,\"Material de consumo nacional\",Lançamento!F6:F75)","v":1393}]
["MATERIAL PERMANENTE IMPORTADO",null,null,null,null,null,{"$f":"SUMIF(Lançamento!B6:B75,\"Material permanente importado\",Lançamento!F6:F75)","v":102000}]
["MATERIAL PERMANENTE NACIONAL",null,null,null,null,null,{"$f":"SUMIF(Lançamento!B6:B75,\"Material permanente nacional\",Lançamento!F6:F75)","v":8000}]
["PAGAMENTO A DISCENTE",null,null,null,null,null,{"$f":"SUMIF(Lançamento!B6:B75,\"Pagamento a discente\",Lançamento!F6:F75)","v":43200}]
["PAGAMENTO A SERVIDOR",null,null,null,null,null,{"$f":"SUMIF(Lançamento!B6:B75,\"Pagamento a servidor\",Lançamento!F6:F75)","v":36000}]
["SERVIÇOS DE TERCEIROS NACIONAL",null,null,null,null,null,{"$f":"SUMIF(Lançamento!B6:B75,\"Serviços de terceiros nacional\",Lançamento!F6:F75)","v":5000}]
["SERVIÇOS DE TERCEIROS NO EXTERIOR",null,null,null,null,null,{"$f":"SUMIF(Lançamento!B6:B75,\"Serviços de terceiros no exterior\",Lançamento!F6:F75)","v":7000}]
[]
[]
[null,"TOTAL NACIONAL",null,null,null,null,{"$f":"SUM(G19,G20,G13,G16,G18,G14,G12,G21)","v":331493}]
[]
["TOTAL IMPORTADO:",null,null,{"$f":"IF(G29=\"taxa não informada\",\"taxa não informada\",G27/G29)","v":{"$error":"#DIV/0!"}},null,"em Reais:",{"$f":"SUM(G15,G17,G22)","v":115900}]
[]
["TAXA DE CÂMBIO (US$ --> R$) CONSIDERADA",null,null,null,null,null,{"$f":"IF(Lançamento!B76=\"digite o valor aqui\",\"taxa não informada\",Lançamento!B76)","v":0}]
["http://www.bcb.gov.br/"]
[]
[null,"TOTAL PARCIAL",null,null,null,null,{"$f":"G25+G27","v":447393}]
[]
[null,"RESSARCIMENTO INSTITUCIONAL",null,null,null,null,{"$f":"Lançamento!B78","v":30791.440000000002}]
[null,"De acordo com o art. 1º da Resolução nº 127/2016"]
[]
["               ","PAGAMENTO À FUNDAÇÃO DE APOIO",null,null,null,null,{"$f":"Lançamento!B77","v":0}]
[]
[]
["CUSTO TOTAL DO PROJETO",null,null,null,null,null,{"$f":"G32+G34+G37","v":478184.44}]

{"sheet":"Gerar PDF - Detalhamento","index":3,"n_rows":48,"n_cols":4,"rows_kept":48,"cut":false,"hidden":false,"merged":[[4,0,4,3],[6,0,6,3],[7,0,7,3],[9,0,9,1],[10,0,10,2],[8,0,8,1],[15,0,15,3],[11,0,11,2],[12,0,12,2],[13,0,13,2],[14,0,14,2]]}
["INSTITUTO FEDERAL DE EDUCAÇÃO, CIÊNCIA E TECNOLOGIA DE SÃO PAULO"]
["AGÊNCIA DE INOVAÇÃO E TRANSFERÊNCIA DE TECNOLOGIA - INOVA / IFSP"]
["PROJETO DE PESQUISA COM CONTRAPARTIDA FINANCEIRA"]
[]
["PLANILHA DE CUSTOS CONSOLIDADA"]
[]
["TÍTULO DO PROJETO"]
[{"$f":"Lançamento!A4","v":"digite o título do projeto aqui (planilha LANÇAMENTO)"}]
["Total Nacional:",null,null,{"$f":"'Gerar PDF - Consolidada'!G25","v":331493}]
["Total Importado:",null,{"$f":"'Gerar PDF - Consolidada'!D27","v":{"$error":"#DIV/0!"}},{"$f":"'Gerar PDF - Consolidada'!G27","v":115900}]
["Taxa de Câmbio (US$ -> R$) Considerada:",null,null,{"$f":"IF(C10>0,'Gerar PDF - Consolidada'!G29,\"-\")","v":{"$error":"#DIV/0!"}}]
["Total Parcial:",null,null,{"$f":"'Gerar PDF - Consolidada'!G32","v":447393}]
["Pagamento à Fundação de Apoio:",null,null,{"$f":"'Gerar PDF - Consolidada'!G37","v":0}]
["Taxa de Restituição Institucional (TRI):",null,null,{"$f":"'Gerar PDF - Consolidada'!G34","v":30791.440000000002}]
["CUSTO TOTAL DO PROJETO:",null,null,{"$f":"D12+D13+D14","v":478184.44}]
[]
["Lançamento","Qtd","V. Unitário","V. Total"]
["Contratação CLT",24,18000,216000]
["Contratação de um Engenheiro - CLT  [Unidade: Mês]",12,9000,108000]
["Encargos de folha de pagamento - Engenheiro CLT (100% do salário bruto)  [Unidade: Mês]",12,9000,108000]
["Despesa",null,0,0]
["Despesas Bancárias e de Correio - Item obrigatório exigido pelas Fundações de Apoio  [Unidade: Mês]",null,0,0]
["Diárias e passagens",6,7300,21900]
["Dárias para participação em reunão científica (3 pessoas)  [Unidade: Und.]",3,3300,9900]
["Passagens para participação em reunião científica (3 pessoas)  [Unidade: Und.]",3,4000,12000]
["Material de consumo importado",10,690,6900]
["Material (fibra de carbono) para corpos de prova  [Unidade: Metro (m)]",10,690,6900]
["Material de consumo nacional",70,19.899999999999999,1393]
["Papel Sulfite A4 Branco  [Unidade: Resma (RM)]",70,19.899999999999999,1393]
["Material permanente importado",1,102000,102000]
["Medidor de LCR de precisão Keysight mod. E4980A , 20 Hz a 2 MHz  [Unidade: Peça (pç)]",1,102000,102000]
["Material permanente nacional",2,4000,8000]
["Osciloscópio Tektronics mod. DSO-4548  [Unidade: Peça (pç)]",2,4000,8000]
["Pagamento a discente",48,3600,43200]
["Bolsa Discente 1 - a definir  [Unidade: Mês]",12,900,10800]
["Bolsa Discente 2 - a definir  [Unidade: Mês]",12,900,10800]
["Bolsa Discente 3 - a definir  [Unidade: Mês]",12,900,10800]
["Bolsa Discente 4 - a definir  [Unidade: Mês]",12,900,10800]
["Pagamento a servidor",24,3000,36000]
["Bolsa Servidor 2 (Pesquisador) - Ana Ribeiro, 6 horas semanais  [Unidade: Mês]",12,1500,18000]
["Bolsa Servidor 1 (Coordenador do Projeto) - José Saramago, 10 horas semanais  [Unidade: Mês]",12,1500,18000]
["Serviços de terceiros nacional",null,5000,5000]
["Manutenção de componentes eletrônicos",null,5000,5000]
["Serviços de terceiros no exterior",null,7000,7000]
["Calibração de equipamento X",null,7000,7000]
["(vazio)",null,null,0]
[0,null,null,0]
["Total Parcial",185,150609.9,447393]

{"sheet":"Fonte DropDown","index":4,"n_rows":13,"n_cols":2,"rows_kept":13,"cut":false,"hidden":true,"merged":[]}
["Contratação CLT","Mês"]
["Despesa","Und."]
["Diárias e passagens","Resma (RM)"]
["Material de consumo importado","Peça (pç)"]
["Material de consumo nacional","Miligrama (mg)"]
["Material permanente importado","Grama (g)"]
["Material permanente nacional","Quilo (kg)"]
["Pagamento a discente","Mililitro (mL)"]
["Pagamento a servidor","Litro (L)"]
["Serviços de terceiros nacional","Centímetro (cm)"]
["Serviços de terceiros no exterior","Metro (m)"]
[null,"Metro quadrado (m²)"]
[null,"Metro cúbico (m³)"]